bitfinex-derivatives/quotes_SOLF0:USTF0_20250606
["timestamp","ask_amount","ask_price","bid_price","bid_amount"]
[1749243042325,7.26345789,149.34,149.26,2.1813]
[1749243042524,33.74,149.33,149.26,2.1813]
[1749243042725,33.74,149.32,149.26,2.1813]
[1749243043122,0.04871934,149.3,149.28,0.03454456]
[1749243044013,0.04871934,149.3,149.29,6.6939]
[1749243044519,0.04871934,149.3,149.29,16.6939]
[1749243044826,33.74,149.32,149.31,6.693]
[1749243045026,33.74,149.35,149.29,10.0]
[1749243045419,33.74,149.35,149.34,6.6913]
[1749243045615,4.3269,149.41,149.32,7.26345789]
[1749243045616,33.74,149.38,149.32,7.26345789]
[1749243045822,0.04421517,149.36,149.34,0.0438063]
[1749243046124,1.517e-05,149.36,149.35,6.6912]
[1749243059533,1.517e-05,149.36,149.35,16.6912]
[1749243065034,1.517e-05,149.36,149.35,23.95465789]
[1749243071534,1.517e-05,149.36,149.35,16.6912]
[1749243073337,33.74,149.41,149.4,6.6889]
[1749243073538,45.60145789,149.44,149.38,7.26345789]
[1749243073738,38.338,149.44,149.38,7.26345789]
[1749243074442,0.05092153,149.42,149.4,0.04909851]
[1749243074843,0.05092153,149.42,149.41,6.6885]
[1749243075245,0.05092153,149.42,149.4,0.04909851]
[1749243075541,0.05092153,149.42,149.4,6.73779851]
[1749243076143,0.05092153,149.42,149.4,0.04909851]
[1749243076343,7.31437942,149.42,149.4,0.04909851]
[1749243076844,6.6885,149.41,149.4,0.04909851]
[1749243078639,40.7085,149.41,149.4,0.04909851]
[1749243080547,34.02,149.41,149.4,0.04909851]
[1749243081141,40.7085,149.41,149.4,0.04909851]
[1749243081947,6.6894,149.39,149.38,10.0]
[1749243082248,13.95285789,149.39,149.38,10.0]
[1749243092455,41.28345789,149.41,149.38,10.0]
[1749243092856,41.28345789,149.41,149.39,6.6891]
[1749243093057,34.02,149.41,149.38,10.0]
[1749243094456,41.28345789,149.41,149.38,10.0]
[1749243094657,47.97235789,149.41,149.38,16.6896]
[1749243095159,34.02,149.41,149.39,6.6892]
[1749243099569,34.02,149.41,149.4,6.6889]
[1749243100069,0.05092153,149.42,149.38,17.26345789]
[1749243101076,0.05092153,149.42,149.41,6.6885]
[1749243101277,0.05092153,149.42,149.4,0.04280033]
[1749243101474,6.6885,149.41,149.4,0.04280033]
[1749243104382,6.6885,149.41,149.4,10.04280033]
[1749243107785,6.73912153,149.42,149.4,16.73170033]
[1749243108082,6.73912153,149.42,149.4,10.04280033]
[1749243108984,6.6885,149.41,149.4,10.04280033]
[1749243123294,40.6285,149.41,149.4,10.04280033]
[1749243130292,6.6902,149.38,149.34,4.3832]
[1749243130492,13.95365789,149.38,149.34,4.3832]
[1749243130799,13.95365789,149.38,149.36,6.6904]
[1749243131294,7.31035779,149.38,149.36,6.72598022]
[1749243132097,7.31035779,149.38,149.36,16.72598022]
[1749243133197,4.6658946,149.37,149.36,16.72598022]
[1749243138897,4.7127945,149.38,149.37,6.6902]
[1749243139197,0.0468999,149.38,149.37,6.6902]
[1749243139389,33.94,149.41,149.37,4.6658946]
[1749243139587,33.94,149.41,149.4,6.6889]
[1749243144704,6.6889,149.4,149.39,0.05070969]
[1749243144899,7.28536057,149.4,149.36,10.0]
[1749243145106,7.28536057,149.37,149.36,10.0]
[1749243145299,47.73556057,149.37,149.36,10.0]
[1749243147002,33.76,149.37,149.36,10.0]
[1749243148307,33.76,149.37,149.36,16.6907]
[1749243148505,0.04341535,149.38,149.36,10.0]
[1749243149092,0.04341535,149.38,149.37,6.6902]
[1749243149309,33.76,149.4,149.36,17.28536057]
[1749243149605,33.76,149.4,149.39,6.6893]
[1749243150703,33.76,149.4,149.38,0.04577456]
[1749243151399,33.76,149.4,149.38,6.73537456]
[1749243151603,40.449,149.4,149.38,6.73537456]
[1749243151800,40.449,149.4,149.38,0.04577456]
[1749243152413,40.449,149.4,149.38,6.73547456]
[1749243153113,40.449,149.4,149.38,0.04577456]
[1749243155013,6.6893,149.39,149.38,0.04577456]
[1749243156116,40.4491,149.4,149.38,0.04577456]
[1749243156319,33.76,149.4,149.38,0.04577456]
[1749243156817,40.4491,149.4,149.38,0.04577456]
[1749243159922,33.76,149.4,149.38,6.73547456]
[1749243160223,33.76,149.4,149.38,0.04577456]
[1749243160423,33.76,149.4,149.39,6.6893]
[1749243161116,0.04471838,149.41,149.4,6.6889]
[1749243164540,0.04471838,149.41,149.4,16.6889]
[1749243168936,0.04471838,149.41,149.4,10.0]
[1749243169638,0.04471838,149.41,149.4,16.6889]
[1749243175835,1.838e-05,149.41,149.4,16.6889]
[1749243176236,1.838e-05,149.41,149.4,19.0116]
[1749243176933,1.838e-05,149.41,149.4,25.2184031]
[1749243187139,1.838e-05,149.41,149.4,19.0116]
[1749243188046,1.838e-05,149.41,149.4,16.6889]
[1749243192248,1.838e-05,149.41,149.4,22.8957031]
[1749243192443,1.838e-05,149.41,149.4,16.6889]
[1749243192650,1.838e-05,149.41,149.4,22.8957031]
[1749243197353,33.72,149.49,149.4,16.2068031]
[1749243197551,33.72,149.49,149.43,7.28536057]
[1749243198154,33.72,149.49,149.47,6.6855]
[1749243198355,33.76679283,149.49,149.47,0.04494468]
[1749243201355,33.76679283,149.49,149.48,6.6853]
[1749243206954,33.76679283,149.49,149.47,6.73054468]
[1749243207352,33.76679283,149.49,149.47,0.04494468]
[1749243208055,0.04679283,149.49,149.47,0.04494468]
[1749243208758,0.04679283,149.49,149.48,6.6853]
[1749243209355,0.04679283,149.49,149.48,16.6853]
[1749243215156,4.70824722,149.49,149.48,10.0]
[1749243215956,11.39314722,149.49,149.48,10.0]
[1749243217363,14.01485858,149.49,149.48,10.0]
[1749243235683,6.73169283,149.49,149.48,10.0]
[1749243235877,14.01485858,149.49,149.48,10.0]
[1749243236078,0.04679283,149.49,149.48,10.0]
[1749243236768,0.04679283,149.49,149.48,16.6853]
[1749243240981,33.7,149.51,149.5,6.6844]
[1749243241176,418.88,149.54,149.5,7.28316575]
[1749243241381,33.7,149.54,149.5,7.28316575]
[1749243241580,33.7,149.54,149.53,6.6831]
[1749243244191,33.7,149.54,149.52,0.04919225]
[1749243245396,33.7,149.54,149.53,6.6831]
[1749243247797,0.04986932,149.55,149.54,6.6826]
[1749243247990,33.68,149.58,149.53,7.28316575]
[1749243248187,33.68,149.58,149.52,0.04919225]
[1749243248488,33.68,149.58,149.52,7.332358]
[1749243248690,6.6814,149.57,149.52,7.332358]
[1749243248888,0.0454684,149.56,149.52,7.332358]
[1749243249403,0.0454684,149.56,149.55,6.6822]
[1749243249902,0.0454684,149.56,149.52,7.332358]
[1749243250399,0.0454684,149.56,149.52,0.04919225]
[1749243251100,6.7275684,149.56,149.53,6.683]
[1749243252001,0.0454684,149.56,149.52,7.332358]
[1749243252700,0.0454684,149.56,149.55,6.6822]
[1749243254505,0.0454684,149.56,149.55,16.6822]
[1749243258098,0.0454684,149.56,149.55,10.0]
[1749243259307,0.0454684,149.56,149.55,16.6822]
[1749243261006,0.0454684,149.56,149.55,23.96536575]
[1749243262007,0.0454684,149.56,149.55,16.6822]
[1749243263309,0.0454684,149.56,149.55,10.0]
[1749243265106,6.7271684,149.56,149.55,10.0]
[1749243265309,0.0454684,149.56,149.55,16.6822]
[1749243265607,0.0454684,149.56,149.55,10.0]
[1749243266211,6.7271684,149.56,149.55,10.0]
[1749243266511,0.0454684,149.56,149.55,10.0]
[1749243266914,0.0454684,149.56,149.55,16.6822]
[1749243267712,33.68,149.58,149.57,6.6813]
[1749243267901,418.9,149.61,149.56,7.28316575]
[1749243268100,33.66,149.61,149.56,7.28316575]
[1749243268705,0.04341254,149.6,149.57,0.04224695]
[1749243269112,0.04341254,149.6,149.59,6.6804]
[1749243271718,14.00657829,149.6,149.57,0.04224695]
[1749243272512,14.00657829,149.6,149.57,6.72324695]
[1749243274208,14.00657829,149.6,149.58,6.6808]
[1749243275015,14.00657829,149.6,149.57,6.72334695]
[1749243275616,14.00657829,149.6,149.58,6.6808]
[1749243276009,7.32657829,149.6,149.57,0.04224695]
[1749243276409,6.6808,149.58,149.57,0.04224695]
[1749243277818,7.32657829,149.6,149.57,0.04224695]
[1749243278620,6.6807,149.59,149.57,0.04224695]
[1749243278918,7.32657829,149.6,149.57,0.04224695]
[1749243279122,0.04341254,149.6,149.57,0.04224695]
[1749243279522,7.28316575,149.59,149.57,0.04224695]
[1749243279721,6.6808,149.58,149.57,0.04224695]
[1749243280121,33.64,149.58,149.57,6.72344695]
[1749243281324,0.04341254,149.6,149.59,6.6804]
[1749243283529,0.04341254,149.6,149.58,6.6806]
[1749243283922,0.04341254,149.6,149.57,0.04224695]
[1749243284521,0.04341254,149.6,149.57,10.04224695]
[1749243285425,7.28316575,149.59,149.57,10.04224695]
[1749243285625,14.5663315,149.59,149.49,6.41941142]
[1749243285825,6.6825,149.55,149.49,0.23473]
[1749243286026,47.60566575,149.55,149.49,0.23473]
[1749243286719,0.05070422,149.53,149.51,0.05011867]
[1749243286921,0.05070422,149.53,149.52,6.6833]
[1749243288020,0.05070422,149.53,149.52,16.6833]
[1749243300436,0.05070422,149.53,149.52,10.0]
[1749243301034,6.73380422,149.53,149.52,10.0]
[1749243309349,6.73380422,149.53,149.46,2.3066]
[1749243309350,0.05070422,149.53,149.46,2.3066]
[1749243309552,0.05070422,149.53,149.44,2.1135]
[1749243309553,7.28316575,149.49,149.44,2.1135]
[1749243309747,40.92316575,149.49,149.44,2.1135]
[1749243309943,33.64,149.49,149.44,2.1135]
[1749243310251,33.64,149.49,149.46,6.6859]
[1749243310252,40.92316575,149.49,149.46,6.6859]
[1749243310451,40.97104442,149.49,149.46,6.73276961]
[1749243310650,47.65604442,149.49,149.46,6.73276961]
[1749243311352,47.65604442,149.49,149.46,16.73276961]
[1749243311651,47.65604442,149.49,149.47,6.6857]
[1749243312149,40.97104442,149.49,149.47,6.6857]
[1749243314254,47.65594442,149.49,149.47,6.6857]
[1749243315650,40.97104442,149.49,149.46,10.04686961]
[1749243315849,7.28316575,149.47,149.46,10.04686961]
[1749243316351,13.96886575,149.47,149.46,10.04686961]
[1749243317649,6.687,149.45,149.39,6.5188]
[1749243317850,40.92316575,149.45,149.39,6.5188]
[1749243318158,40.92316575,149.45,149.44,6.6871]
[1749243318552,40.92316575,149.45,149.39,6.5188]
[1749243318553,40.92316575,149.45,149.43,6.6875]
[1749243318753,40.97331646,149.45,149.43,0.04244168]
[1749243319647,40.97331646,149.45,149.44,6.6871]
[1749243320857,40.97331646,149.45,149.43,10.04244168]
[1749243321856,47.66021646,149.45,149.43,16.72984168]
[1749243323060,40.97331646,149.45,149.43,16.72984168]
[1749243325364,40.97331646,149.45,149.44,6.6871]
[1749243329368,40.97331646,149.45,149.43,16.72974168]
[1749243332764,40.97331646,149.45,149.44,6.6871]
[1749243332971,33.69015071,149.45,149.44,6.6871]
[1749243333264,33.64,149.48,149.43,10.04244168]
[1749243333466,33.64,149.48,149.47,6.6858]
[1749243333773,33.64,149.48,149.43,10.0]
[1749243333962,40.3253,149.48,149.45,6.6864]
[1749243334159,33.64,149.48,149.45,6.6864]
[1749243334358,7.28316575,149.47,149.45,0.04381499]
[1749243334571,6.6863,149.46,149.45,0.04381499]
[1749243340674,6.6863,149.46,149.43,10.0]
[1749243340675,6.6871,149.44,149.43,10.0]
[1749243340974,40.92316575,149.44,149.39,6.6891]
[1749243341280,7.28316575,149.41,149.35,2.1317]
[1749243341470,7.28316575,149.39,149.35,2.1317]
[1749243341671,0.04418496,149.38,149.36,0.04677444]
[1749243342772,0.04418496,149.38,149.37,6.6902]
[1749243343273,0.04418496,149.38,149.37,16.6902]
[1749243359181,4.7093816,149.38,149.37,16.6902]
[1749243360882,4.7093816,149.38,149.37,10.0]
[1749243362294,4.7093816,149.38,149.37,16.6902]
[1749243375709,11.3991816,149.38,149.37,10.0]
[1749243376012,4.7093816,149.38,149.37,10.0]
[1749243377115,11.3991816,149.38,149.37,10.0]
[1749243378913,4.7093816,149.38,149.37,10.0]
[1749243383121,11.3991816,149.38,149.37,10.0]
[1749243384410,0.04418496,149.38,149.37,10.0]
[1749243384609,4.7093816,149.38,149.37,10.0]
[1749243384823,4.7093816,149.38,149.37,16.6902]
[1749243385318,11.3991816,149.38,149.37,10.0]
[1749243386919,0.04418496,149.38,149.37,14.66304272]
[1749243387225,38.26304272,149.42,149.37,14.66304272]
[1749243387425,44.95124272,149.42,149.38,4.66304272]
[1749243388124,0.0512595,149.41,149.39,4.71034156]
[1749243388525,0.0512595,149.41,149.4,11.35194272]
[1749243389627,0.0512595,149.41,149.4,16.6889]
[1749243390226,0.0512595,149.41,149.4,10.0]
[1749243391926,0.0512595,149.41,149.4,16.6889]
[1749243394224,0.0512595,149.41,149.4,10.0]
[1749243395028,0.0512595,149.41,149.4,16.6889]
[1749243400135,4.71430222,149.41,149.4,10.0]
[1749243400532,11.40270222,149.41,149.4,10.0]
[1749243407635,4.71430222,149.41,149.4,16.6889]
[1749243413152,4.71430222,149.41,149.4,10.0]
[1749243414351,4.71430222,149.41,149.4,16.6889]
[1749243421359,0.0512595,149.41,149.4,16.6889]
[1749243421557,33.56,149.45,149.4,14.66304272]
[1749243421757,4.66304272,149.45,149.41,4.66304272]
[1749243421957,11.34994272,149.45,149.41,4.66304272]
[1749243422260,4.66304272,149.44,149.41,4.66304272]
[1749243422459,4.7087554,149.44,149.41,4.66304272]
[1749243422657,4.7087554,149.44,149.41,4.70749841]
[1749243423161,4.7087554,149.44,149.41,0.04445569]
[1749243423663,4.7087554,149.44,149.43,6.6875]
[1749243424452,0.04571268,149.44,149.43,6.6875]
[1749243425061,4.7087554,149.44,149.43,6.6875]
[1749243426862,0.04571268,149.44,149.43,6.6875]
[1749243429666,4.7087554,149.44,149.41,0.04445569]
[1749243429866,4.66304272,149.42,149.41,0.04445569]
[1749243430066,9.14168088,149.42,149.41,0.04445569]
[1749243430265,4.66304272,149.42,149.41,0.04445569]
[1749243430459,15.83329193,149.42,149.41,0.04445569]
[1749243430666,9.14525567,149.42,149.41,0.04445569]
[1749243431868,9.1458344,149.42,149.41,6.73285569]
[1749243433272,4.48279168,149.42,149.41,6.73285569]
[1749243433473,4.66304272,149.42,149.41,6.73285569]
[1749243433671,9.14309788,149.42,149.41,6.73285569]
[1749243434173,4.66304272,149.42,149.41,6.73285569]
[1749243434374,9.14281843,149.42,149.41,16.73285569]
[1749243434672,9.14281822,149.42,149.41,16.73285569]
[1749243435370,4.66304272,149.42,149.41,16.73285569]
[1749243435577,9.14423413,149.42,149.41,16.73285569]
[1749243437176,9.14276396,149.42,149.41,10.04445569]
[1749243437373,4.66304272,149.42,149.41,10.04445569]
[1749243437674,9.14136301,149.42,149.41,10.04445569]
[1749243438172,9.14136301,149.42,149.41,16.73285569]
[1749243438477,9.14136301,149.42,149.41,10.04445569]
[1749243438676,49.36936301,149.42,149.41,10.04445569]
[1749243439180,49.36223103,149.42,149.41,10.04445569]
[1749243439379,44.89104272,149.42,149.41,10.04445569]
[1749243439676,49.36182941,149.42,149.41,10.04445569]
[1749243440178,49.36222938,149.42,149.41,10.04445569]
[1749243440673,44.89104272,149.42,149.41,10.04445569]
[1749243441168,49.36182865,149.42,149.41,10.04445569]
[1749243441370,49.3617324,149.42,149.41,10.04445569]
[1749243442580,49.36215607,149.42,149.41,10.04445569]
[1749243442978,49.3620156,149.42,149.41,10.04445569]
[1749243443377,49.36272179,149.42,149.41,10.04445569]
[1749243444281,49.35133408,149.42,149.41,10.04445569]
[1749243444582,49.35156564,149.42,149.41,10.04445569]
[1749243445876,44.89104272,149.42,149.41,10.04445569]
[1749243446081,49.34343098,149.42,149.41,10.04445569]
[1749243447081,49.34263134,149.42,149.41,10.04445569]
[1749243448183,49.34269931,149.42,149.41,10.04445569]
[1749243449282,44.89104272,149.42,149.41,10.04445569]
[1749243449485,49.34010157,149.42,149.41,10.04445569]
[1749243449683,44.89104272,149.42,149.41,10.04445569]
[1749243449879,49.34006566,149.42,149.41,10.04445569]
[1749243451284,49.34050537,149.42,149.41,10.04445569]
[1749243452685,42.65307937,149.42,149.41,10.04445569]
[1749243452883,42.65308289,149.42,149.41,10.04445569]
[1749243453285,42.65327605,149.42,149.41,10.04445569]
[1749243453589,49.34127605,149.42,149.41,10.04445569]
[1749243454287,49.34086164,149.42,149.41,10.04445569]
[1749243454785,49.34088944,149.42,149.41,10.04445569]
[1749243454982,49.34088593,149.42,149.41,10.04445569]
[1749243456085,49.33960951,149.42,149.41,10.04445569]
[1749243456485,49.34002708,149.42,149.41,10.04445569]
[1749243456688,49.34007621,149.42,149.41,10.04445569]
[1749243458386,44.89104272,149.42,149.41,10.04445569]
[1749243458589,49.34609124,149.42,149.41,10.04445569]
[1749243458782,49.34600709,149.42,149.41,10.04445569]
[1749243460183,49.34838089,149.42,149.41,10.04445569]
[1749243460487,49.34918484,149.42,149.41,10.04445569]
[1749243460681,49.34955352,149.42,149.41,10.04445569]
[1749243461986,49.34963579,149.42,149.41,10.04445569]
[1749243462788,49.34981531,149.42,149.41,10.04445569]
[1749243463391,49.34290514,149.42,149.41,10.04445569]
[1749243464183,44.89104272,149.42,149.41,10.04445569]
[1749243464488,49.34214419,149.42,149.41,10.04445569]
[1749243465995,44.89104272,149.42,149.41,10.04445569]
[1749243466292,49.33625073,149.42,149.41,10.04445569]
[1749243467288,44.89104272,149.42,149.41,10.04445569]
[1749243467496,49.33262318,149.42,149.41,10.04445569]
[1749243467889,49.33272035,149.42,149.41,10.04445569]
[1749243468092,49.33265733,149.42,149.41,10.04445569]
[1749243468287,42.64465733,149.42,149.41,10.04445569]
[1749243469299,42.64386872,149.42,149.41,10.04445569]
[1749243469596,42.64381958,149.42,149.41,10.04445569]
[1749243469789,49.33181958,149.42,149.41,10.04445569]
[1749243470895,49.33209443,149.42,149.41,10.04445569]
[1749243471094,44.89104272,149.42,149.41,10.04445569]
[1749243471297,49.33388999,149.42,149.41,10.04445569]
[1749243472807,49.334298,149.42,149.41,10.04445569]
[1749243473000,44.89104272,149.42,149.41,10.04445569]
[1749243473307,49.33960057,149.42,149.41,10.04445569]
[1749243474403,49.34256542,149.42,149.41,10.04445569]
[1749243474603,49.34236821,149.42,149.41,10.04445569]
[1749243474800,49.34256542,149.42,149.41,10.04445569]
[1749243476010,44.89104272,149.42,149.41,10.04445569]
[1749243476213,49.34457723,149.42,149.41,10.04445569]
[1749243477306,49.34495696,149.42,149.41,10.04445569]
[1749243477615,49.34484566,149.42,149.41,10.04445569]
[1749243479008,44.89172392,149.42,149.41,10.04445569]
[1749243479808,49.34132286,149.42,149.41,10.04445569]
[1749243480808,49.3398294,149.42,149.41,10.04445569]
[1749243481010,49.33982564,149.42,149.41,10.04445569]
[1749243481815,6.6889,149.4,149.38,6.6897]
[1749243482117,9.11394531,149.39,149.38,6.6897]
[1749243482316,9.11359946,149.39,149.38,6.6897]
[1749243482703,9.11359946,149.39,149.37,6.74074046]
[1749243482907,9.11331498,149.38,149.37,6.74074046]
[1749243483814,4.44747139,149.38,149.37,22.99400593]
[1749243484012,0.05001176,149.4,149.39,6.6893]
[1749243484207,4.49697142,149.4,149.39,6.6893]
[1749243484408,9.16013474,149.4,149.39,12.95380023]
[1749243485013,9.162184,149.4,149.39,12.95380023]
[1749243485513,4.71317508,149.4,149.39,12.95380023]
[1749243485913,9.16040994,149.4,149.39,12.95380023]
[1749243486105,9.16063295,149.4,149.39,12.95380023]
[1749243486306,4.49748127,149.4,149.39,12.95380023]
[1749243487317,0.05001176,149.4,149.39,12.95380023]
[1749243487720,4.49820495,149.4,149.39,12.95380023]
[1749243488113,4.49752987,149.4,149.39,12.95380023]
[1749243488919,4.5061019,149.4,149.39,12.95380023]
[1749243489120,0.05001176,149.4,149.39,12.95380023]
[1749243489620,4.50698591,149.4,149.39,12.95380023]
[1749243490318,4.50729024,149.4,149.39,12.95380023]
[1749243490621,4.5072949,149.4,149.39,12.95380023]
[1749243491118,4.50729631,149.4,149.39,12.95380023]
[1749243492119,4.50708404,149.4,149.39,12.95380023]
[1749243492520,4.50711469,149.4,149.39,12.95380023]
[1749243492720,4.50713286,149.4,149.39,12.95380023]
[1749243493924,4.51413061,149.4,149.39,12.95380023]
[1749243494321,4.51404072,149.4,149.39,12.95380023]
[1749243494521,4.51404072,149.4,149.39,22.95380023]
[1749243495626,0.05001176,149.4,149.39,22.95380023]
[1749243495826,4.51372419,149.4,149.39,22.95380023]
[1749243497431,4.51347692,149.4,149.39,22.95380023]
[1749243498232,4.51326913,149.4,149.39,22.95380023]
[1749243498934,4.51991859,149.4,149.39,22.95380023]
[1749243500630,9.18308191,149.4,149.39,10.0]
[1749243501437,9.18308191,149.4,149.39,16.6893]
[1749243501839,4.51991859,149.4,149.39,16.6893]
[1749243502231,9.18308191,149.4,149.39,16.6893]
[1749243502531,4.51991859,149.4,149.39,16.6893]
[1749243503538,0.05001176,149.4,149.39,16.6893]
[1749243503737,33.44,149.45,149.43,6.6872]
[1749243503934,4.66316332,149.44,149.4,4.66316332]
[1749243504139,4.66316332,149.43,149.39,20.92766355]
[1749243504334,4.66316332,149.43,149.42,6.688]
[1749243504940,0.0423689,149.44,149.41,0.0452702]
[1749243505240,4.66316332,149.42,149.41,0.0452702]
[1749243506740,4.66316332,149.42,149.41,6.7336702]
[1749243506940,4.66316332,149.42,149.41,0.0452702]
[1749243508741,4.66316332,149.42,149.41,6.7336702]
[1749243509440,4.66316332,149.42,149.41,16.7336702]
[1749243511744,4.66316332,149.42,149.41,10.0452702]
[1749243512839,4.66316332,149.42,149.41,16.7336702]
[1749243515140,11.35116332,149.42,149.41,10.0452702]
[1749243524042,6.6896,149.39,149.35,10.56150023]
[1749243524239,4.66316332,149.36,149.35,2.1283]
[1749243524438,4.66316332,149.36,149.35,8.8194]
[1749243524638,4.66316332,149.36,149.35,6.6911]
[1749243524843,4.66316332,149.36,149.33,6.26450023]
[1749243525041,4.66316332,149.34,149.33,13.00587057]
[1749243525238,4.66316332,149.34,149.33,6.74137034]
[1749243525849,4.66316332,149.34,149.33,16.74137034]
[1749243526955,4.66316332,149.34,149.33,10.04937034]
[1749243528157,11.35476332,149.34,149.33,10.04937034]
[1749243528943,4.66316332,149.34,149.33,10.04937034]
[1749243529551,11.35476332,149.34,149.33,10.04937034]
[1749243530651,6.6916,149.34,149.33,6.63855527]
[1749243530851,4.66316332,149.34,149.24,17.40186355]
[1749243531047,33.44,149.35,149.26,4.66316332]
[1749243531248,4.66316332,149.31,149.27,4.66316332]
[1749243531653,0.04494117,149.3,149.28,0.04417246]
[1749243531853,0.04494117,149.3,149.28,4.70733578]
[1749243532153,33.44,149.35,149.29,4.66316332]
[1749243532359,38.10316332,149.35,149.31,4.66316332]
[1749243533056,0.04615734,149.34,149.33,6.692]
[1749243534762,4.70932066,149.34,149.33,6.692]
[1749243535265,0.04615734,149.34,149.33,6.692]
[1749243537068,0.04615734,149.34,149.33,11.35516332]
[1749243538567,5.734e-05,149.34,149.33,11.35516332]
[1749243550679,5.734e-05,149.34,149.33,6.692]
[1749243554376,5.734e-05,149.34,149.33,16.692]
[1749243554977,5.734e-05,149.34,149.33,21.35516332]
[1749243557177,5.734e-05,149.34,149.33,16.692]
[1749243566680,5.734e-05,149.34,149.33,22.93418426]
[1749243570383,5.734e-05,149.34,149.33,16.692]
[1749243570781,5.734e-05,149.34,149.33,22.93418426]
[1749243570981,5.734e-05,149.34,149.33,16.692]
[1749243581089,5.734e-05,149.34,149.33,22.94619312]
[1749243582189,5.734e-05,149.34,149.33,16.692]
[1749243582787,5.734e-05,149.34,149.33,22.94619312]
[1749243583789,5.734e-05,149.34,149.33,16.692]
[1749243584687,5.734e-05,149.34,149.33,22.94619312]
[1749243588688,5.734e-05,149.34,149.33,16.692]
[1749243588992,5.734e-05,149.34,149.33,22.9540191]
[1749243589694,5.734e-05,149.34,149.33,16.692]
[1749243589994,5.734e-05,149.34,149.33,22.95518883]
[1749243596996,4.59452468,149.34,149.33,22.95518883]
[1749243597191,5.734e-05,149.34,149.33,22.95518883]
[1749243597495,4.593825,149.34,149.33,22.95518883]
[1749243597895,4.59382369,149.34,149.33,22.95518883]
[1749243598798,5.734e-05,149.34,149.33,22.95518883]
[1749243598990,4.60133078,149.34,149.33,22.95518883]
[1749243599296,4.60143565,149.34,149.33,22.95518883]
[1749243599698,4.60143565,149.34,149.33,16.692]
[1749243600492,4.60217217,149.34,149.33,16.692]
[1749243600993,5.734e-05,149.34,149.33,16.692]
[1749243601194,4.602909,149.34,149.33,16.692]
[1749243602597,4.60221378,149.34,149.33,16.692]
[1749243603800,4.60221378,149.34,149.33,22.95827652]
[1749243606704,5.734e-05,149.34,149.33,22.95827652]
[1749243606905,4.60575557,149.34,149.33,22.95827652]
[1749243607505,4.60596819,149.34,149.33,22.95852934]
[1749243607899,6.819e-05,149.34,149.33,21.35972262]
[1749243608105,33.36,149.41,149.33,23.00540991]
[1749243608305,4.66445719,149.4,149.37,4.66445719]
[1749243608601,33.36,149.41,149.37,4.66445719]
[1749243608805,38.02445719,149.41,149.38,4.66445719]
[1749243609098,38.07228085,149.41,149.38,4.70700352]
[1749243609306,38.07228085,149.41,149.39,6.6893]
[1749243609809,4.66445719,149.4,149.39,6.6893]
[1749243610002,4.66445719,149.4,149.38,6.73204633]
[1749243610203,4.66445719,149.39,149.38,0.04254633]
[1749243610705,11.35375719,149.39,149.38,0.04254633]
[1749243611099,4.66445719,149.39,149.34,6.26545502]
[1749243611297,4.66445719,149.35,149.33,22.95725502]
[1749243611903,4.66445719,149.34,149.33,22.95725502]
[1749243612908,4.66445719,149.34,149.33,16.6918]
[1749243613409,4.66445719,149.34,149.33,22.95725502]
[1749243613604,4.66445719,149.34,149.33,16.26545502]
[1749243613805,4.66445719,149.34,149.33,10.0]
[1749243614808,11.35605719,149.34,149.33,10.0]
[1749243619107,6.692,149.33,149.32,0.04709233]
[1749243619308,40.65944515,149.33,149.26,6.26545502]
[1749243619510,40.65944515,149.33,149.28,6.6939]
[1749243619710,6.6933,149.31,149.28,6.6939]
[1749243619911,4.48677783,149.3,149.28,6.6939]
[1749243620113,4.48677783,149.29,149.25,41.83755502]
[1749243620412,0.0506467,149.28,149.26,0.04879795]
[1749243620612,0.0506467,149.28,149.27,6.6947]
[1749243621213,0.0506467,149.28,149.27,16.6947]
[1749243624522,4.45867285,149.32,149.31,6.6929]
[1749243624823,33.36,149.33,149.29,7.29944515]
[1749243625118,33.36,149.33,149.32,6.6925]
[1749243625420,4.45433436,149.33,149.32,6.6925]
[1749243625616,0.04354694,149.34,149.33,6.692]
[1749243625822,4.4978813,149.34,149.33,6.692]
[1749243626021,0.04354694,149.34,149.33,6.692]
[1749243626219,4.4978813,149.34,149.33,6.692]
[1749243626418,0.04354694,149.34,149.32,6.6922]
[1749243626725,11.79763754,149.34,149.31,0.04916778]
[1749243626920,14.03489209,149.34,149.31,6.74196778]
[1749243627212,18.48953754,149.34,149.31,6.74196778]
[1749243627416,14.03489209,149.34,149.31,6.74196778]
[1749243627821,18.505362,149.34,149.31,6.74196778]
[1749243628020,14.03489209,149.34,149.31,6.74196778]